bitfinex/quotes_ETHUSD_20251018
["timestamp","ask_amount","ask_price","bid_price","bid_amount"]
[1760798397897,0.04486542,3885.2,3883.9,0.002]
[1760798397898,0.1202,3884.0,3883.9,0.002]
[1760798398098,0.7328,3885.0,3883.9,0.002]
[1760798398099,0.1202,3884.3,3883.9,0.002]
[1760798398502,0.1202,3884.3,3883.9,2.57667029]
[1760798398711,0.16507036,3884.3,3883.9,2.57667029]
[1760798398892,0.16507036,3884.3,3883.9,0.002]
[1760798399092,0.26447036,3884.3,3883.9,0.002]
[1760798399398,0.0994,3884.2,3883.9,0.002]
[1760798399919,0.0994,3884.1,3883.9,0.002]
[1760798400419,0.04487036,3884.3,3884.1,2.574599]
[1760798400798,0.04487036,3884.3,3884.2,2.57453272]
[1760798401791,0.04487036,3884.3,3884.1,0.6662]
[1760798401998,0.04487036,3884.3,3884.0,0.128]
[1760798402825,0.0998,3884.2,3883.9,0.002]
[1760798403193,0.0998,3884.1,3883.9,0.002]
[1760798403428,0.128,3884.0,3883.9,0.002]
[1760798403633,0.2278,3884.0,3883.9,0.002]
[1760798404294,0.04487036,3884.3,3883.9,0.002]
[1760798404695,0.04487036,3884.3,3884.0,2.57465526]
[1760798404915,0.04487036,3884.3,3883.9,0.13]
[1760798405091,0.14467036,3884.3,3883.9,0.13]
[1760798405296,0.128,3884.0,3883.9,0.002]
[1760798406306,0.04487036,3884.3,3883.9,2.57671613]
[1760798406513,0.04487036,3884.3,3883.9,0.002]
[1760798406708,0.04487036,3884.3,3883.9,3.01871772]
[1760798407242,0.04487036,3884.3,3883.9,2.57671772]
[1760798407545,0.04487036,3884.3,3884.0,2.57465915]
[1760798407742,0.04487036,3884.3,3883.9,0.002]
[1760798407944,0.0998,3884.2,3883.9,0.002]
[1760798409203,0.04487036,3884.3,3883.9,0.002]
[1760798409402,0.0998,3884.2,3883.9,0.002]
[1760798409717,0.128,3884.0,3883.9,0.002]
[1760798410342,0.2278,3884.0,3883.9,0.002]
[1760798410565,0.128,3884.0,3883.9,0.002]
[1760798411153,0.128,3884.2,3883.9,0.002]
[1760798412265,0.2278,3884.2,3883.9,0.002]
[1760798412469,0.128,3884.2,3883.9,0.002]
[1760798413271,0.17287363,3884.2,3883.9,0.002]
[1760798413836,0.0998,3884.1,3883.9,0.002]
[1760798414359,0.0998,3884.0,3883.9,0.002]
[1760798414538,0.27267363,3884.2,3883.9,0.002]
[1760798414738,0.17287363,3884.2,3883.9,0.002]
[1760798414939,0.0998,3884.1,3883.9,0.002]
[1760798415378,0.0998,3884.0,3883.9,0.002]
[1760798417577,11.08134796,3884.0,3883.9,0.002]
[1760798417757,8.89627996,3884.0,3883.9,0.002]
[1760798417954,11.62165696,3884.0,3883.9,0.002]
[1760798418280,9.2003787,3884.0,3883.9,0.002]
[1760798418662,9.3001787,3884.0,3883.9,0.002]
[1760798420164,19.7189177,3884.0,3883.9,0.002]
[1760798420584,11.7483107,3884.0,3883.9,0.002]
[1760798420757,9.3001787,3884.0,3883.9,0.002]
[1760798420964,9.2003787,3884.0,3883.9,0.002]
[1760798421882,17.9148237,3884.0,3883.9,0.002]
[1760798422258,12.4579507,3884.0,3883.9,0.002]
[1760798422586,17.527292,3883.8,3882.3,0.2212]
[1760798422881,2.3616,3883.6,3882.3,0.2212]
[1760798423083,2.3616,3883.6,3882.0,0.2275]
[1760798423084,0.6336,3883.4,3882.0,0.2275]
[1760798423285,2.3616,3883.4,3882.0,0.2275]
[1760798423471,2.3616,3883.2,3882.0,0.2275]
[1760798423790,0.6336,3883.1,3882.0,0.2275]
[1760798423957,0.6336,3883.1,3882.1,0.442]
[1760798424157,0.1214,3883.0,3882.0,0.2275]
[1760798424568,0.7326,3882.9,3881.7,0.6632]
[1760798426132,0.7326,3882.9,3881.8,0.442]
[1760798426673,0.04489508,3882.7,3881.8,0.442]
[1760798429557,0.7326,3882.6,3881.6,0.002]
[1760798429757,1.77289508,3882.7,3881.6,0.444]
[1760798429928,1.77289508,3882.7,3881.7,2.57613972]
[1760798430253,1.77289508,3882.7,3881.8,0.442]
[1760798430612,0.6336,3882.6,3881.6,0.002]
[1760798431220,0.40405534,3882.4,3881.6,0.002]
[1760798431842,0.04489768,3882.3,3881.6,0.002]
[1760798432153,0.6336,3882.2,3881.6,0.002]
[1760798432364,0.7326,3882.2,3881.6,0.002]
[1760798432578,0.1288,3881.7,3881.6,0.002]
[1760798433326,0.17370215,3881.7,3881.6,0.002]
[1760798435753,0.77800215,3881.7,3881.6,0.002]
[1760798435920,0.7331,3881.7,3881.6,0.002]
[1760798436369,0.6336,3881.7,3881.6,0.002]
[1760798438769,0.67850922,3881.7,3881.6,0.002]
[1760798440189,0.77800922,3881.7,3881.6,0.002]
[1760798440495,0.67850922,3881.7,3881.6,0.002]
[1760798441011,0.77800922,3881.7,3881.6,0.002]
[1760798441864,0.04490922,3881.7,3881.6,0.002]
[1760798447667,0.67850922,3881.7,3881.6,0.002]
[1760798447872,0.77800922,3881.7,3881.6,0.002]
[1760798448801,0.67850922,3881.7,3881.6,0.002]
[1760798450288,0.77800922,3881.7,3881.6,0.002]
[1760798450687,20.81220322,3881.7,3881.6,0.002]
[1760798450885,18.95570922,3881.7,3881.6,0.002]
[1760798451083,19.5142122,3881.7,3881.6,0.002]
[1760798451498,19.46930298,3881.7,3881.6,0.002]
[1760798451709,14.01601614,3881.7,3881.6,0.002]
[1760798451904,10.67177214,3881.7,3881.6,0.002]
[1760798452286,10.43641514,3881.7,3881.6,0.002]
[1760798452488,2.56444114,3881.7,3881.6,0.002]
[1760798452711,7.87918014,3881.7,3881.6,0.002]
[1760798453790,10.36319314,3881.7,3881.6,0.002]
[1760798453988,2.50985373,3881.7,3881.6,0.002]
[1760798454392,2.40651259,3881.7,3881.6,0.002]
[1760798455921,1.728,3881.7,3881.6,0.4568]
[1760798458723,1.77290895,3881.7,3881.6,0.4568]
[1760798460524,1.77290895,3881.7,3881.6,0.002]
[1760798461119,1.77290895,3881.7,3881.6,0.4568]
[1760798461521,1.77290895,3881.7,3881.6,0.002]
[1760798463196,2.40650895,3881.7,3881.6,0.002]
[1760798463932,1.77290895,3881.7,3881.6,0.002]
[1760798464125,0.17370895,3881.7,3881.6,0.4568]
[1760798464340,0.128,3882.2,3881.6,0.5856]
[1760798464542,0.128,3882.2,3882.1,0.2248]
[1760798464999,0.128,3882.2,3882.0,0.2248]
[1760798465194,0.6336,3882.5,3882.1,0.4673]
[1760798465593,0.6336,3882.7,3882.1,0.4673]
[1760798465843,0.7333,3882.7,3881.6,0.4712]
[1760798466019,0.1288,3881.8,3881.6,0.002]
[1760798466396,0.6336,3881.7,3881.6,0.002]
[1760798467522,0.67850987,3881.7,3881.6,0.002]
[1760798468001,1.08263939,3881.7,3881.6,0.002]
[1760798468196,8.61567839,3881.7,3881.6,0.002]
[1760798468508,7.61567839,3881.7,3881.6,0.002]
[1760798468914,2.81063939,3881.7,3881.6,0.002]
[1760798469696,2.17703939,3881.7,3881.6,0.002]
[1760798469901,1.90170987,3881.7,3881.6,0.4712]
[1760798473475,1.90170987,3881.7,3881.6,3.04745721]
[1760798473476,0.04490987,3881.7,3881.6,3.04745721]
[1760798474157,6.39,3881.9,3881.6,3.04745721]
[1760798474364,6.39,3881.9,3881.6,2.57825721]
[1760798474564,6.39,3881.9,3881.7,0.4692]
[1760798474927,6.39,3881.9,3881.6,0.002]
[1760798475122,6.39,3881.9,3881.7,0.4692]
[1760798475346,6.39,3881.9,3881.8,0.4692]
[1760798478643,6.4349029,3881.9,3881.8,0.4692]
[1760798479678,8.1629029,3881.9,3881.8,0.4692]
[1760798481780,6.4349029,3881.9,3881.8,3.04532447]
[1760798481966,0.0449029,3881.9,3881.8,3.47885912]
[1760798485049,1.728,3882.6,3881.9,2.57601147]
[1760798485599,1.728,3882.6,3882.1,0.128]
[1760798485804,1.728,3882.6,3882.2,0.4692]
[1760798486777,1.728,3882.6,3882.1,0.3596]
[1760798487167,1.728,3882.6,3882.1,0.8288]
[1760798487867,1.728,3882.6,3882.1,0.3596]
[1760798488075,0.0448977,3882.5,3882.2,0.4692]
[1760798488804,0.0448977,3882.5,3882.1,0.3596]
[1760798489104,0.0448977,3882.5,3882.1,0.8288]
[1760798489901,0.0448977,3882.5,3882.1,0.128]
[1760798490515,0.0448977,3882.5,3881.9,2.57603782]
[1760798490516,0.101,3882.4,3881.5,0.2316]
[1760798490676,0.128,3882.3,3881.6,0.1308]
[1760798491777,0.0448977,3882.5,3881.9,2.57599477]
[1760798491976,0.0448977,3882.5,3882.0,0.4692]
[1760798492606,0.0448977,3882.5,3882.1,0.4692]
[1760798493033,0.0448977,3882.5,3882.2,0.4692]
[1760798495019,0.0448977,3882.5,3881.9,0.1288]
[1760798496817,0.0448977,3882.5,3881.9,2.70485675]
[1760798497715,0.0448977,3882.5,3881.9,0.1288]
[1760798498522,0.0448977,3882.5,3881.9,0.5753]
[1760798498816,0.0448977,3882.5,3881.9,3.15135365]
[1760798499705,0.0448977,3882.5,3881.9,0.5753]
[1760798499911,0.0448977,3882.5,3881.9,3.15135356]
[1760798500500,0.0458977,3882.5,3881.9,3.15135356]
[1760798501406,0.0458977,3882.5,3881.9,0.5753]
[1760798501611,0.0458977,3882.5,3881.9,3.15135028]
[1760798502000,0.0458977,3882.5,3882.0,0.4465]
[1760798502401,0.0458977,3882.5,3882.1,0.4465]
[1760798503613,0.0458977,3882.5,3882.2,0.4465]
[1760798504624,0.0458977,3882.5,3881.9,0.5753]
[1760798505224,0.0458977,3882.5,3882.0,0.4465]
[1760798505606,0.0458977,3882.5,3882.1,0.4465]
[1760798506703,0.0458977,3882.5,3882.2,0.4465]
[1760798513737,0.0458977,3882.5,3881.9,2.70484607]
[1760798514041,0.0458977,3882.5,3882.0,0.4465]
[1760798515203,0.0458977,3882.5,3882.0,3.02248793]
[1760798515419,0.0458977,3882.5,3882.1,0.4465]
[1760798516920,0.0458977,3882.5,3882.0,2.57598793]
[1760798517120,0.0458977,3882.5,3882.2,0.4465]
[1760798518125,0.0458977,3882.5,3882.3,0.4465]
[1760798518750,0.0458977,3882.5,3882.4,0.4465]
[1760798519269,0.0458977,3882.5,3882.4,3.02222635]
[1760798519414,0.001,3882.5,3882.4,3.33724899]
[1760798519620,0.001,3882.5,3882.4,3.46524899]
[1760798525069,0.001,3882.5,3882.4,3.48684899]
[1760798525368,0.001,3882.5,3882.4,3.17182635]
[1760798529734,0.001,3882.5,3882.4,2.70372635]
[1760798529939,0.001,3882.5,3881.6,0.002]
[1760798530285,0.6336,3882.1,3881.6,0.002]
[1760798530479,3.280961,3882.2,3881.6,0.002]
[1760798530480,0.6336,3881.9,3881.6,0.002]
[1760798530889,0.1006,3881.8,3881.6,0.002]
[1760798531181,2.683911,3881.7,3881.6,0.002]
[1760798531477,4.411911,3881.7,3881.6,0.002]
[1760798531657,4.5574206,3881.7,3881.6,0.002]
[1760798533142,6.2174626,3881.7,3881.6,0.002]
[1760798533348,5.7466296,3881.7,3881.6,0.002]
[1760798533549,2.5071096,3881.7,3881.6,0.002]
[1760798533761,5.1566296,3881.7,3881.6,0.002]
[1760798534343,1.7729096,3881.7,3881.6,0.002]
[1760798535598,30.4748775,3881.0,3880.8,0.002]
[1760798535749,2.3616,3880.9,3880.8,0.002]
[1760798535949,5.126477,3880.9,3880.8,0.002]
[1760798536452,5.171399,3880.9,3880.8,0.002]
[1760798536648,6.40700923,3880.9,3880.8,0.002]
[1760798537291,8.98373112,3880.9,3880.8,0.002]
[1760798537464,0.6336,3880.6,3880.4,0.002]
[1760798538068,0.8528,3880.5,3880.4,0.002]
[1760798538264,9.613597,3880.5,3880.4,0.002]
[1760798538467,8.118132,3880.5,3880.4,0.002]
[1760798538668,5.85005413,3880.5,3880.4,0.002]
[1760798538893,3.02999833,3880.5,3880.4,0.002]
[1760798539208,8.52596733,3880.5,3880.4,0.002]
[1760798539687,7.75477233,3880.5,3880.4,0.002]
[1760798540077,6.11228033,3880.5,3880.4,0.002]
[1760798540404,7.18910633,3880.5,3880.4,0.002]
[1760798541389,9.83841733,3880.5,3880.4,0.002]
[1760798542372,10.12930133,3880.5,3880.4,0.002]
[1760798542572,9.83841733,3880.5,3880.4,0.002]
[1760798543090,7.93975433,3880.5,3880.4,0.002]
[1760798543304,7.50311933,3880.5,3880.4,0.002]
[1760798543714,7.02363733,3880.5,3880.4,0.002]
[1760798544373,8.19235633,3880.5,3880.4,0.002]
[1760798544573,7.51735633,3880.5,3880.4,0.002]
[1760798545392,3.02999833,3880.5,3880.4,0.002]
[1760798545709,7.51735633,3880.5,3880.4,0.002]
[1760798546274,2.17719833,3880.5,3880.4,0.4427]
[1760798546480,0.57799833,3880.5,3880.4,0.4427]
[1760798546676,0.17372213,3880.5,3880.4,0.4427]
[1760798546899,0.17372213,3880.5,3880.4,0.002]
[1760798547101,0.1288,3880.5,3880.4,0.4427]
[1760798548794,0.40422204,3881.0,3880.4,0.4427]
[1760798548795,0.1288,3880.9,3880.4,0.4427]
[1760798549380,0.04491401,3880.8,3880.4,0.4427]
[1760798550375,0.04491401,3880.8,3880.4,3.04550639]
[1760798550574,0.04491401,3880.8,3880.4,3.01973586]
[1760798550895,0.04491401,3880.8,3880.5,0.4407]
[1760798551815,0.04491401,3880.8,3880.6,0.4407]
[1760798553126,0.04491401,3880.8,3880.6,3.01761902]
[1760798553320,0.04491401,3880.8,3880.7,0.4407]
[1760798553709,0.04491401,3880.8,3880.7,0.5695]
[1760798554322,0.04491401,3880.8,3880.7,3.14635469]
[1760798554523,0.04591401,3880.8,3880.7,3.71889391]
[1760798555313,0.001,3880.8,3880.7,3.71889391]
[1760798556033,0.001,3880.8,3880.7,0.1288]
[1760798556208,0.001,3880.8,3880.4,0.002]
[1760798556739,0.1288,3880.7,3880.4,0.002]
[1760798558601,0.17371572,3880.7,3880.4,0.002]
[1760798563821,0.04491572,3880.7,3880.5,0.452]
[1760798564022,0.04491572,3880.7,3880.6,0.452]
[1760798565833,0.04491572,3880.7,3880.6,3.02892109]
[1760798566233,0.001,3880.8,3880.6,3.02892109]
[1760798566438,0.001,3880.8,3880.7,0.452]
[1760798568746,0.04591053,3880.8,3880.7,0.452]
[1760798569723,0.04591053,3880.8,3880.7,3.02885469]
[1760798570038,0.04591053,3880.8,3880.7,3.15765469]
[1760798570848,6.35518735,3881.4,3880.7,3.60509391]
[1760798571023,0.04490953,3880.9,3880.7,3.73389391]
[1760798571220,6.48398735,3881.4,3880.8,0.452]
[1760798572653,6.48398735,3881.4,3880.7,0.1288]
[1760798572654,0.001,3881.2,3880.7,0.1288]
[1760798574353,0.04491028,3881.1,3880.7,0.1288]
[1760798574732,0.001,3881.2,3880.7,0.1288]
[1760798574938,0.001,3881.2,3880.7,0.5808]
[1760798575340,2.282404,3881.2,3880.7,0.5808]
[1760798578052,0.04491028,3881.1,3880.7,0.5808]
[1760798580272,0.04491028,3881.1,3880.8,3.05455236]
[1760798580468,0.04491028,3881.1,3880.8,3.60481278]
[1760798580772,2.282404,3881.2,3880.9,0.452]
[1760798581080,2.282404,3881.2,3881.0,0.452]
[1760798584091,2.32731336,3881.2,3881.0,0.452]
[1760798586488,2.32731336,3881.2,3881.0,2.57661177]
[1760798586655,2.32731336,3881.2,3881.1,3.36128911]
[1760798586859,2.282404,3881.2,3881.1,3.36128911]
[1760798587691,2.282404,3881.2,3881.1,2.91998911]
[1760798587991,2.282404,3881.2,3881.1,3.36128911]
[1760798589364,2.282404,3881.2,3881.1,3.36328911]
[1760798589563,2.282404,3881.2,3881.1,4.01587246]
[1760798596226,2.282404,3881.2,3881.1,0.1308]
[1760798596523,2.381804,3881.2,3881.1,0.002]
[1760798596819,2.282404,3881.2,3881.1,0.002]
[1760798600731,2.282404,3881.2,3881.1,0.1308]
[1760798601219,2.381804,3881.2,3881.1,0.002]
[1760798602594,2.282404,3881.2,3881.1,0.002]
[1760798604310,2.381804,3881.2,3881.1,0.002]
[1760798605508,2.282404,3881.2,3881.1,0.002]
[1760798614446,2.381804,3881.2,3881.1,0.002]
[1760798614617,2.510604,3881.2,3881.1,0.002]
[1760798615149,0.6336,3881.1,3880.7,0.002]
[1760798615310,0.1288,3880.9,3880.7,0.002]
[1760798615843,0.0994,3880.8,3880.7,0.002]
[1760798617208,0.733,3880.8,3880.7,0.002]
[1760798618145,0.6336,3880.8,3880.7,0.002]
[1760798619434,0.733,3880.8,3880.7,0.002]
[1760798620145,0.7779147,3880.8,3880.7,0.002]
[1760798620536,0.6785147,3880.8,3880.7,0.002]
[1760798623552,0.6336,3880.8,3880.7,0.002]
[1760798625144,0.1288,3880.9,3880.7,0.002]
[1760798625344,0.1288,3880.9,3880.7,0.4543]
[1760798627947,0.17371286,3880.9,3880.7,0.4543]
[1760798628616,0.17371286,3880.9,3880.7,0.002]
[1760798630902,0.733,3880.8,3880.7,0.002]
[1760798631403,0.733,3880.8,3880.0,0.002]
[1760798631600,0.1288,3880.6,3880.0,0.4543]
[1760798632058,0.1288,3880.6,3880.0,0.002]
[1760798632239,0.04491528,3880.5,3880.0,0.002]
[1760798632745,0.14431528,3880.5,3880.0,0.002]
[1760798632906,0.6336,3880.4,3880.0,0.002]
[1760798633105,0.1288,3880.1,3880.0,0.002]
[1760798633311,0.7624,3880.1,3880.0,0.002]
[1760798633754,0.8618,3880.1,3880.0,0.002]
[1760798634443,0.7624,3880.1,3880.0,0.002]
[1760798637450,1.16666101,3880.1,3880.0,0.002]
[1760798637953,1.21158179,3880.1,3880.0,0.002]
[1760798639961,1.21158179,3880.1,3879.5,0.1308]
[1760798639962,2.3616,3880.0,3879.5,0.002]
[1760798640129,0.6336,3880.0,3879.6,0.4523]
[1760798640328,0.6336,3880.0,3879.7,0.4523]
[1760798640587,0.6336,3880.0,3879.8,0.4523]
[1760798640734,0.6336,3880.0,3879.9,0.4523]
[1760798641366,0.90348179,3880.1,3879.9,0.4523]
[1760798641533,0.04492078,3880.1,3879.9,0.4523]
[1760798642885,0.67852078,3880.1,3880.0,0.002]
[1760798646567,0.04492078,3880.1,3880.0,0.4356]
[1760798646770,0.04492078,3880.1,3880.0,0.73689879]
[1760798647344,0.001,3880.6,3880.0,0.73689879]
[1760798647547,0.001,3880.6,3880.1,0.6664]
[1760798647937,0.001,3880.6,3880.2,0.4336]
[1760798649449,0.001,3880.6,3880.2,3.01077314]
[1760798649771,0.04591583,3880.6,3880.2,3.01077314]
[1760798649971,0.04591583,3880.6,3880.3,0.4336]
[1760798650150,0.04591583,3880.6,3880.3,3.01072016]
[1760798650342,0.04591583,3880.6,3880.3,0.4336]
[1760798650542,0.04591583,3880.6,3880.4,0.4336]
[1760798652358,0.04591583,3880.6,3880.5,0.4336]
[1760798653071,0.04591583,3880.6,3880.5,3.0105875]
[1760798653776,0.001,3880.6,3880.5,3.0105875]
[1760798663433,0.001,3880.6,3880.5,0.4336]
[1760798664347,0.001,3880.6,3880.4,0.1288]
[1760798664850,0.001,3880.6,3880.4,2.70585307]
[1760798665907,0.001,3880.6,3880.4,0.1288]
[1760798666436,0.001,3880.6,3880.2,0.1288]
[1760798666437,0.6336,3880.5,3880.2,0.1288]
[1760798666638,0.0994,3880.4,3880.0,0.002]
[1760798666838,0.6336,3880.3,3880.0,0.002]
[1760798667041,0.1288,3880.2,3880.0,0.002]
[1760798667240,0.6336,3879.9,3879.6,0.002]
[1760798667445,0.7808,3879.7,3879.6,0.002]
[1760798667937,0.8807,3879.7,3879.6,0.002]
[1760798669543,0.92562569,3879.7,3879.6,0.002]
[1760798670515,0.82572569,3879.7,3879.6,0.002]
[1760798671845,0.67852569,3879.7,3879.6,0.002]
[1760798674649,0.04492569,3879.7,3879.6,0.002]
[1760798674944,0.04492569,3879.7,3879.6,0.475]
[1760798676243,0.04492569,3879.7,3879.6,3.05258531]
[1760798676653,0.6346,3880.6,3879.7,2.57751565]
[1760798676955,0.6336,3880.4,3879.6,0.475]
[1760798677342,0.1288,3880.1,3879.6,0.475]
[1760798677532,0.1288,3880.1,3879.7,0.473]
[1760798678472,0.1288,3880.1,3879.6,0.002]
[1760798678966,0.1288,3880.1,3879.6,0.475]
[1760798680460,0.04492126,3880.0,3879.6,0.475]
[1760798681160,0.04492126,3880.0,3879.6,0.002]
[1760798681365,0.04492126,3880.0,3879.7,0.473]
[1760798682367,0.04492126,3880.0,3879.6,2.57952394]
[1760798682547,0.04492126,3880.0,3879.8,0.473]
[1760798684656,0.04492126,3880.0,3879.6,0.002]
[1760798684856,0.04492126,3880.0,3879.6,0.475]
[1760798685267,0.04492126,3880.0,3879.6,0.002]
[1760798685472,0.04492126,3880.0,3879.7,0.473]
[1760798685635,0.04492126,3880.0,3879.6,0.002]
[1760798686438,0.04492126,3880.0,3879.6,0.475]
[1760798688539,0.04492126,3880.0,3879.6,0.002]
[1760798688769,0.04492126,3880.0,3879.6,0.475]
[1760798689270,0.04492126,3880.0,3879.6,0.002]
[1760798689507,0.7331,3879.9,3879.6,0.002]
[1760798689953,0.6336,3879.7,3879.6,0.002]
[1760798690456,2.57737758,3880.0,3879.6,0.002]
[1760798690457,0.6336,3880.0,3879.6,0.002]
[1760798690661,0.0995,3879.7,3879.6,0.002]
[1760798691261,0.7331,3879.7,3879.6,0.002]
[1760798692688,0.778027,3879.7,3879.6,0.002]
[1760798697270,0.678527,3879.7,3879.6,0.002]
[1760798700377,0.044927,3879.7,3879.6,0.475]
[1760798700969,0.1288,3880.0,3879.7,2.57747461]
[1760798701297,0.1288,3880.0,3879.6,0.32035094]
[1760798701515,0.1288,3880.0,3879.8,0.473]
[1760798701703,0.1288,3880.0,3879.6,2.89792826]
[1760798702010,0.6336,3879.9,3879.6,0.002]
[1760798702207,0.7624,3879.7,3879.6,0.002]
[1760798702510,0.7624,3879.7,3879.6,0.475]
[1760798702877,0.7624,3879.7,3879.6,0.002]
[1760798703254,0.1288,3879.7,3879.6,0.475]
[1760798703893,0.04492139,3879.8,3879.6,3.38636786]
[1760798704098,0.04492139,3879.8,3879.6,0.78304058]
[1760798704293,0.04492139,3879.8,3879.7,0.4634]
[1760798704690,0.1288,3880.1,3879.7,3.04091551]
[1760798705012,0.1288,3880.1,3879.8,0.4634]
[1760798706013,0.6336,3880.0,3879.8,0.4634]
[1760798706471,0.1288,3880.1,3879.8,2.5774157]
[1760798706677,0.6336,3880.3,3879.9,0.4699]
[1760798707007,0.6336,3880.3,3880.2,0.2243]
[1760798707319,0.6336,3880.3,3880.2,0.6942]
[1760798708551,0.1298,3880.4,3880.2,0.6942]
[1760798708837,0.1298,3880.4,3880.2,0.2243]
[1760798709137,0.1298,3880.4,3880.3,0.4699]
[1760798709843,0.001,3880.4,3880.3,0.4699]
[1760798710052,0.001,3880.4,3879.5,0.002]
[1760798710219,0.6336,3880.2,3880.0,0.002]
[1760798710547,0.6336,3880.2,3880.1,0.6942]
[1760798710777,0.04491811,3880.2,3880.1,3.27145316]
[1760798711045,0.04491811,3880.2,3880.1,0.2243]
[1760798711251,0.04491811,3880.2,3880.0,0.002]
[1760798715855,0.04491811,3880.2,3880.1,0.4699]
[1760798717153,0.04491811,3880.2,3880.0,0.002]
[1760798717359,0.04491811,3880.2,3880.0,0.4719]
[1760798717858,0.04491811,3880.2,3880.0,0.002]
[1760798718162,0.04491811,3880.2,3880.1,3.04715316]
[1760798718858,0.04491811,3880.2,3880.1,0.4699]
[1760798721073,0.04491811,3880.2,3880.1,3.04715316]
[1760798721230,0.04491811,3880.2,3880.1,0.4699]
[1760798724559,0.04491811,3880.2,3880.1,3.04715316]
[1760798724928,0.04491811,3880.2,3880.1,3.07292569]
[1760798726163,0.001,3880.3,3880.2,2.57718674]
[1760798726359,0.001,3880.3,3880.2,3.62518309]
[1760798726754,0.001,3880.3,3880.2,5.50875495]
[1760798726953,0.001,3880.3,3880.2,5.48298309]
[1760798729778,1e-08,3880.6,3880.5,2.5769875]
[1760798729978,1e-08,3880.6,3880.5,7.91755443]
[1760798730151,1e-08,3880.6,3880.5,8.36168456]
[1760798735681,1e-08,3880.6,3880.5,8.4649806]
[1760798736452,1e-08,3880.6,3880.5,8.5937806]
[1760798739884,1e-08,3880.6,3880.5,5.9857806]
[1760798740288,1e-08,3880.6,3880.5,8.5927806]
[1760798740588,1e-08,3880.6,3880.5,5.9857806]
[1760798740819,1e-08,3880.6,3880.5,8.5927806]
[1760798743886,1e-08,3880.6,3880.5,5.9857806]
[1760798744087,1e-08,3880.6,3880.5,8.5927806]
[1760798745766,1e-08,3880.6,3880.5,8.5947806]
[1760798746380,1e-08,3880.6,3880.5,3.7898806]
[1760798746567,1e-08,3880.6,3880.5,2.81108354]
[1760798746772,1e-08,3880.6,3880.5,3.31095341]
[1760798749275,1e-08,3880.6,3880.5,2.81108354]
[1760798750302,0.10060001,3880.6,3880.5,2.81108354]
[1760798750668,1e-08,3880.6,3880.5,2.81108354]
[1760798752303,1e-08,3880.6,3880.5,3.61060393]
[1760798755206,1e-08,3880.6,3880.5,4.08470393]
[1760798755415,1e-08,3880.6,3880.5,3.61060393]
[1760798764920,1e-08,3880.6,3880.5,4.07330393]
[1760798765618,1e-08,3880.6,3880.5,4.0990738]
[1760798766007,1e-08,3880.6,3880.5,2.68228354]
[1760798766316,0.09900001,3880.6,3880.5,2.5789875]
[1760798767310,0.09900001,3880.6,3880.5,0.002]
[1760798768398,0.09900001,3880.6,3880.5,2.5789875]
[1760798768811,1e-08,3880.6,3880.5,2.5789875]
[1760798769522,0.09900001,3880.6,3880.5,2.5789875]
[1760798770528,0.09900001,3880.6,3880.5,0.002]
[1760798771497,1e-08,3880.6,3880.5,2.5789875]
[1760798772224,1e-08,3880.6,3880.5,2.60475737]
[1760798772608,1e-08,3880.6,3880.5,2.5789875]
[1760798775128,1e-08,3880.6,3880.5,3.58783447]
[1760798775330,1e-08,3880.6,3880.5,2.5789875]
[1760798775634,1e-08,3880.6,3880.5,2.68230329]
[1760798775797,1e-08,3880.6,3880.5,3.13070329]
[1760798775998,1e-08,3880.6,3880.5,3.25950329]
[1760798776202,1e-08,3880.6,3880.5,4.10376183]
[1760798776942,1e-08,3880.6,3880.5,2.5789875]
[1760798777313,1e-08,3880.6,3880.5,3.05315737]
[1760798777509,1e-08,3880.6,3880.5,3.0273875]
[1760798778705,1e-08,3880.6,3880.5,3.05315737]
[1760798779022,1e-08,3880.6,3880.5,3.0273875]
[1760798779214,1e-08,3880.6,3880.5,3.85876956]
[1760798779414,2.05646339,3881.2,3881.1,2.57658911]
[1760798782024,2.05646339,3881.2,3881.1,3.02498911]
[1760798783729,2.05646339,3881.2,3881.1,2.57658911]
[1760798784666,2.05646339,3881.2,3881.1,3.25668911]
[1760798784863,2.05646339,3881.2,3881.1,4.18067941]
[1760798785659,2.05646339,3881.2,3881.1,4.95537376]
[1760798786041,2.05646339,3881.2,3881.1,7.56137376]
[1760798786367,2.05646339,3881.2,3881.1,4.95537376]
[1760798786573,2.05646339,3881.2,3881.1,7.56137376]
[1760798786959,0.128,3882.8,3881.3,2.57645634]
[1760798787130,0.347,3882.8,3881.3,3.80168391]
[1760798787332,0.099,3882.4,3881.3,4.35311935]
[1760798787676,0.22,3881.4,3881.3,0.10329578]
[1760798787832,0.001,3881.4,3881.3,2.57645634]
[1760798788229,0.001,3881.4,3881.3,2.6022209]
[1760798789157,0.001,3881.4,3881.3,2.57645634]
[1760798790576,0.001,3881.4,3881.3,3.02485634]
[1760798790886,0.001,3881.4,3881.3,3.1597705]
[1760798791055,0.001,3881.4,3881.3,3.26306414]
[1760798792595,0.001,3881.4,3881.3,3.71146414]
[1760798794894,0.001,3881.4,3881.3,3.7372287]
[1760798795262,0.001,3881.4,3881.3,3.71146414]
[1760798796989,0.001,3881.4,3881.3,5.43946414]
[1760798797576,0.001,3881.4,3881.3,5.56826414]
[1760798798189,0.1667,3882.9,3881.3,5.56826414]
[1760798798190,1e-08,3881.8,3881.7,4.30419084]
[1760798798507,1e-08,3881.8,3881.7,7.99468955]
[1760798798679,1e-08,3881.8,3881.7,8.42338955]
[1760798798873,1e-08,3881.8,3881.7,8.59008955]